fUST/lending_fUST_20241027
["ID","MTS","AMOUNT","RATE_DAILY","PERIOD"]
[340878642,1729998640424,-524.91,0.00036589,30]
[340878643,1729998640436,-2839.12,0.00036589,30]
[340878644,1729998640448,-1169.92,0.00036589,30]
[340878645,1729998640458,-2308.81,0.00036589,30]
[340878646,1729998640470,-1197.64,0.00036589,30]
[340878647,1729998640481,-3553.23,0.00036589,30]
[340878648,1729998640491,-500.0,0.00036589,30]
[340878649,1729998640502,-1033.53,0.00036589,30]
[340878650,1729998640512,-1266.47,0.00036589,30]
[340878652,1729998640522,-500.0,0.00036589,30]
[340878653,1729998640532,-1293.78,0.00036589,30]
[340878655,1729998640543,-2640.75,0.00036589,30]
[340878656,1729998640553,-489.29627827,0.00036589,30]
[340878657,1729998640565,-500.0,0.00036589,30]
[340878658,1729998640575,-817.2,0.00036589,30]
[340878659,1729998640586,-848.66,0.00036589,30]
[340878660,1729998640596,-500.0,0.00036589,2]
[340878661,1729998640607,-500.0,0.00036589,2]
[340878662,1729998640618,-499.7885507,0.00036589,2]
[340878663,1729998640628,-576.35,0.00036589,30]
[340878664,1729998640639,-527.1527577,0.00036589,30]
[340878665,1729998640651,-649.15423477,0.00036589,30]
[340878666,1729998640661,-942.65,0.00036589,30]
[340878667,1729998640672,-7314.37819347,0.0003659,5]
[340878668,1729998640820,-268.0,0.00036371,2]
[340878669,1729998640831,-358.63287577,0.00036383,30]
[340878670,1729998640854,-141.36712423,0.00036383,30]
[340878671,1729998640867,-15822.24009153,0.0003659,5]
[340878672,1729998640878,-15756.55926224,0.0003659,5]
[340878673,1729998640890,-477.5934171,0.0003659,5]
[340878680,1729998643504,-210.8195346,0.00036356,2]
[340878681,1729998643516,-500.0,0.00036499,30]
[340878682,1729998643527,-500.0,0.00036589,30]
[340878683,1729998643536,-1402.69,0.00036589,30]
[340878684,1729998643546,-16354.4918755,0.0003659,5]
[340878694,1729998646647,-364.81044894,0.00036201,7]
[340878695,1729998646659,-268.0,0.00036201,7]
[340878696,1729998646671,-700.90966323,0.00036201,7]
[340878697,1729998646680,-1017.58,0.00036499,30]
[340878698,1729998646690,-1165.14,0.00036589,30]
[340878699,1729998646699,-30749.55,0.00036589,30]
[340878700,1729998646708,-71233.19612516,0.0003659,5]
[340878701,1729998646717,-161.828,0.00036592,45]
[340878702,1729998646727,-1025.74,0.00036599,120]
[340878703,1729998646736,-109373.5077375,0.000366,5]
[340878704,1729998646745,-1951.66,0.00036657,30]
[340878705,1729998646754,-581.91711691,0.00036657,30]
[340878706,1729998646763,-500.0,0.00036657,30]
[340878707,1729998646772,-500.0,0.00036657,30]
[340878708,1729998646781,-1229.96,0.00036657,30]
[340878709,1729998646791,-500.0,0.00036657,30]
[340878710,1729998646800,-881.5,0.00036657,30]
[340878711,1729998646809,-500.0,0.00036657,30]
[340878712,1729998646818,-500.0,0.00036657,30]
[340878713,1729998646827,-517.42814762,0.00036657,30]
[340878714,1729998646837,-500.0,0.00036657,30]
[340878715,1729998646846,-1284.7,0.00036657,30]
[340878716,1729998646855,-1233.38,0.00036657,30]
[340878717,1729998646866,-1554.17,0.00036657,30]
[340878718,1729998646876,-500.0,0.00036657,30]
[340878719,1729998646886,-500.0,0.00036657,30]
[340878720,1729998646895,-458.02010632,0.00036657,30]
[340878721,1729998646904,-500.0,0.00036657,30]
[340878722,1729998646915,-151.0,0.00036681,14]
[340878723,1729998646924,-151.0,0.00036681,14]
[340878724,1729998646934,-151.0,0.00036682,14]
[340878725,1729998646948,-151.0,0.00036682,14]
[340878726,1729998646959,-167.843612,0.00036682,14]
[340878727,1729998646969,-236.1406527,0.00036685,2]
[340878728,1729998646978,-210.8195346,0.00036685,2]
[340878729,1729998646988,-3058.23406796,0.00036692,2]
[340878730,1729998646997,-151.0,0.00036695,14]
[340878731,1729998647007,-789.714508,0.00036695,2]
[340878732,1729998647016,-500.0,0.000367,120]
[340878733,1729998647026,-1000.0,0.00036712,60]
[340878734,1729998647035,-1000.0,0.00036712,61]
[340878735,1729998647045,-1000.0,0.00036712,62]
[340878736,1729998647054,-1000.0,0.00036712,63]
[340878737,1729998647063,-1000.0,0.00036712,64]
[340878738,1729998647073,-1000.0,0.00036712,65]
[340878739,1729998647082,-1000.0,0.00036712,66]
[340878740,1729998647092,-1000.0,0.00036712,67]
[340878741,1729998647102,-1000.0,0.00036712,68]
[340878742,1729998647111,-1000.0,0.00036712,69]
[340878743,1729998647121,-1000.0,0.00036712,70]
[340878744,1729998647131,-1000.0,0.00036712,71]
[340878745,1729998647140,-1000.0,0.00036712,72]
[340878746,1729998647151,-1000.0,0.00036712,73]
[340878747,1729998647161,-542.15407025,0.00036712,74]
[340878748,1729998647171,-500.0,0.00036714,2]
[340878749,1729998647180,-606.31,0.00036714,30]
[340878750,1729998647191,-560.0,0.00036715,2]
[340878751,1729998647200,-500.0,0.00036773,30]
[340878752,1729998647209,-550.8575825,0.00036773,30]
[340878753,1729998647219,-500.0,0.00036773,30]
[340878754,1729998647229,-500.0,0.00036773,30]
[340878755,1729998647238,-500.0,0.00036773,30]
[340878756,1729998647248,-500.0,0.00036773,30]
[340878757,1729998647257,-4311.1,0.00036773,30]
[340878758,1729998647266,-500.0,0.00036773,30]
[340878759,1729998647276,-508.24,0.00036773,30]
[340878760,1729998647285,-500.0,0.00036773,30]
[340878761,1729998647294,-630.98,0.00036773,30]
[340878762,1729998647303,-500.0,0.00036773,30]
[340878763,1729998647312,-500.0,0.00036773,30]
[340878764,1729998647321,-115.59330592,0.00036773,30]
[340878765,1729998756750,172.973671,0.00013973,2]
[340878766,1729999145439,1187.32,0.00035724,120]
[340878767,1729999393960,30000.0,0.00022,60]
[340878769,1729999485864,30000.0,0.00022,60]
[340878771,1729999550823,39871.0,0.00022,60]
[340878772,1729999698734,185.62883298,0.000123,2]
[340878773,1729999700827,6594.13297212,0.000125,2]
[340878815,1729999832758,-397.57354782,0.00022,3]
[340878921,1729999838789,-413.07882208,0.00022,3]
[340878922,1729999838801,-266.47535616,0.00029999,2]
[340878942,1729999841119,-33.52464384,0.00029999,2]
[340878943,1729999841130,-300.0,0.00029999,2]
[340878944,1729999841140,-1333.72011217,0.0003,3]
[340878945,1729999841149,-29297.25987947,0.0003,15]
[340878946,1729999841159,-208.00108605,0.0003,7]
[340878947,1729999841168,-24900.0,0.00030853,2]
[340878948,1729999841177,-10309.56644378,0.00032866,4]
[340878949,1729999841189,-2236.22549348,0.00032866,4]
[340878951,1729999843609,-366.88,0.00032856,3]
[340878952,1729999843620,-1164.47,0.00032866,4]
[340878953,1729999843756,-640.9348181,0.00032866,4]
[340878954,1729999843768,-7628.59061544,0.00032866,4]
[340878955,1729999843777,-8105.16356407,0.00032866,5]
[340878966,1729999881762,172.973671,0.00013973,2]
[340878967,1730000686028,10000.0,0.00035734,30]
[340878968,1730000720856,10000.0,0.00035734,30]
[340878969,1730000728675,10000.0,0.00035734,30]
[340878970,1730000736632,10000.0,0.00035734,30]
[340878971,1730000758370,4324.0,0.00035734,30]
[340878972,1730000827453,1000.73590857,0.00035734,30]
[340878973,1730000989279,172.973671,0.00013973,2]
[340879017,1730001033054,-3819.50567599,0.00026699,2]
[340879019,1730001033067,-21040.49432401,0.00026699,2]
[340879021,1730001033078,-502.7519893,0.00026865,2]
[340879023,1730001033088,-1501.3216371,0.00027396,2]
[340879026,1730001033100,-300.0,0.00028326,2]
[340879028,1730001033109,-300.0,0.00028326,2]
[340879030,1730001033119,-1712.0891596,0.00028428,2]
[340879032,1730001033128,-174.58037781,0.00029041,120]
[340879034,1730001033137,-3615.75042976,0.000299,2]
[340879036,1730001033148,-177.717547,0.000299,2]
[340879038,1730001033157,-388.3387819,0.000299,2]
[340879040,1730001033167,-2000.0,0.0003,30]
[340879042,1730001033176,-2000.0,0.0003,30]
[340879044,1730001033186,-2000.0,0.0003,30]
[340879046,1730001033196,-2000.0,0.0003,30]
[340879048,1730001033205,-2000.0,0.0003,30]
[340879050,1730001033215,-161.828,0.00030216,25]
[340879052,1730001033224,-420.0,0.00030582,2]
[340879054,1730001033234,-6298.87016006,0.00030678,2]
[340879056,1730001033243,-420.0,0.00031159,2]
[340879058,1730001033253,-3615.75042972,0.00032043,2]
[340879060,1730001033262,-4339.40683637,0.00032402,2]
[340879062,1730001033272,-161.161,0.0003283,2]
[340879064,1730001033283,-305.73,0.00032836,3]
[340879066,1730001033295,-152.87,0.00032836,3]
[340879068,1730001033305,-458.62,0.00032836,3]
[340879070,1730001033315,-5667.03395376,0.00032842,7]
[340879073,1730001033325,-22604.1045991,0.00032846,4]
[340879074,1730001033334,-81542.26807356,0.00032846,5]
[340879077,1730001033346,-1151.23577243,0.00032846,5]
[340879667,1730001039126,-19327.34557724,0.00032846,5]
[340879868,1730001041139,-386.793813,0.00032846,5]
[340879870,1730001041150,-586.3649986,0.00032846,5]
[340880309,1730001046701,-3680.01888517,0.00032846,5]
[340880310,1730001046711,-3205.73194508,0.00032866,4]
[340880627,1730002053557,172.973671,0.00013973,2]
[340880675,1730002238303,-250.0,0.00029068,2]
[340880676,1730002238314,-827.4052669,0.00029303,2]
[340880677,1730002238323,-300.0,0.00029367,2]
[340880678,1730002238335,-300.0,0.00029367,2]
[340880679,1730002238345,-16950.938244,0.00029368,2]
[340880680,1730002238362,-7949.061756,0.00029368,2]
[340880681,1730002238372,-824.4025043,0.00029433,2]
[340880682,1730002238384,-420.0,0.00031671,2]
[340880683,1730002238394,-203.8756344,0.00031918,2]
[340880684,1730002238406,-153.0,0.00031918,2]
[340880685,1730002238415,-153.0,0.00031918,2]
[340880686,1730002238425,-3564.42175065,0.00032275,2]
[340880687,1730002238436,-420.0,0.00032303,2]
[340880688,1730002238446,-19763.26042687,0.00032343,2]
[340880689,1730002238457,-536.82199978,0.00032343,7]
[340880690,1730002238467,-6504.89735073,0.00032375,2]
[340880691,1730002238479,-152.86,0.00032527,3]
[340880692,1730002238488,-458.62,0.00032527,3]
[340880693,1730002238504,-172.77,0.00032537,32]
[340880694,1730002238515,-49939.3654125,0.00032537,4]
[340880695,1730002238525,-39283.64316477,0.00032537,4]
[340880700,1730002239893,-96296.61369532,0.00032537,4]
[340880701,1730002239904,-66382.07216531,0.00032537,4]
[340880702,1730002239947,-718.3225026,0.00032537,4]
[340880703,1730002239959,-786.29283566,0.00032547,2]
[340880847,1730002245847,-34014.71045912,0.00032547,2]
[340880848,1730002245858,-18449.28954088,0.00032547,2]
[340880859,1730003049282,172.973671,0.00013973,2]
[340880899,1730003432192,-300.0,0.00029245,2]
[340880900,1730003432202,-300.0,0.00029245,2]
[340880901,1730003432212,-330.07706711,0.00029246,2]
[340880902,1730003432224,-24569.92293289,0.00029246,2]
[340880903,1730003432235,-163.692581,0.00029535,2]
[340880904,1730003432244,-29297.25987947,0.0003,15]
[340880905,1730003432254,-496.94518864,0.0003,7]
[340880906,1730003432264,-3118.86903181,0.000309,2]
[340880907,1730003432273,-306.14035,0.00031,60]
[340880908,1730003432282,-163.692581,0.00031074,2]
[340880909,1730003432292,-397.0,0.00031545,2]
[340880910,1730003432302,-1000.0,0.00032,2]
[340880911,1730003432312,-3670.72430461,0.00032157,2]
[340880912,1730003432336,-1375.92,0.00032157,2]
[340880913,1730003432348,-1046.84811361,0.00032157,2]
[340880914,1730003432359,-457.7766715,0.00032157,2]
[340880930,1730003438278,-56.64185635,0.00032157,2]
[340880931,1730003438289,-420.0,0.0003217,2]
[340880932,1730003438299,-185.82895705,0.00032173,2]
[340880933,1730003438309,-172.77,0.00032273,32]
[340880934,1730003438319,-2851.00170084,0.00032294,2]
[340880935,1730003438329,-194.07707563,0.00032447,2]
[340880936,1730003438339,-2795.77052057,0.00032547,2]
[340880937,1730003438351,-9997.76233106,0.00032547,2]
[340880944,1730003440175,-17137.65312549,0.00032547,2]
[340880945,1730003440184,-1937.33701286,0.00032547,2]
[340880946,1730003440194,-8580.35319837,0.00032547,2]
[340880947,1730003440205,-305.72,0.00032785,3]
[340880948,1730003440215,-156.166116,0.00032785,7]
[340880949,1730003440224,-151.0,0.00032785,7]
[340880950,1730003440234,-151.0,0.00032785,7]
[340880951,1730003440246,-151.0,0.00032785,7]
[340880952,1730003440255,-151.0,0.00032785,7]
[340880953,1730003440269,-151.0,0.00032785,7]
[340880954,1730003440279,-151.0,0.00032785,7]
[340880955,1730003440290,-151.0,0.00032785,7]
[340880956,1730003440301,-151.0,0.00032785,7]
[340880957,1730003440311,-398.692962,0.00032785,7]
[340880958,1730003440322,-398.692962,0.00032785,7]
[340880959,1730003440331,-151.0,0.00032785,7]
[340880960,1730003440341,-24236.491064,0.00032786,4]
[340880961,1730003440351,-11871.96572459,0.00032786,4]
[340880962,1730003440363,-8021.88660342,0.00032786,4]
[340880963,1730003440380,-1546.78600054,0.00032786,4]
[340880964,1730003440395,-1913.10538877,0.00032786,4]
[340880974,1730003446054,-495.64305827,0.00032785,2]
[340881219,1730004632112,-453.4020165,0.00029863,2]
[340881221,1730004632121,-300.0,0.00029896,2]
[340881223,1730004632131,-300.0,0.00029896,2]
[340881225,1730004632140,-24900.0,0.00029897,2]
[340881228,1730004632150,-469.2666364,0.00031577,2]
[340881231,1730004632159,-306.0,0.00031841,2]
[340881234,1730004632169,-224.76572595,0.00031978,2]
[340881237,1730004632181,-82.50786065,0.00031978,2]
[340881240,1730004632191,-420.0,0.00032224,2]
[340881243,1730004632200,-172.77,0.00032273,32]
[340881245,1730004632210,-442.08265159,0.00032274,2]
[340881247,1730004632222,-1011.671816,0.00032274,2]
[340881250,1730004632245,-548.39693727,0.00032274,2]
[340881252,1730004632254,-1956.60306274,0.00032381,2]
[340881532,1730004640265,-453.40201646,0.00032381,2]
[340881619,1730004646159,-677.8,0.00031246,2]
[340881621,1730004646171,-649.0,0.00031246,2]
[340881726,1730005832391,-250.0,0.00028264,2]
[340881728,1730005832401,-300.0,0.00028472,2]
[340881730,1730005832411,-300.0,0.00028472,2]
[340881732,1730005832422,-2137.80768588,0.00028473,2]
[340881734,1730005832434,-3040.94147242,0.00028473,2]
[340881893,1730005838526,-4257.68455269,0.00028473,2]
[340881894,1730005838654,-15463.56628901,0.00028473,2]
[340881895,1730005838665,-453.54841635,0.00028564,2]
[340881896,1730005838674,-1360.3243617,0.00028664,2]
[340881897,1730005838684,-420.0,0.00030735,2]
[340881898,1730005838694,-420.0,0.0003132,2]
[340881899,1730005838704,-174.70370022,0.00031941,2]
[340881900,1730005838713,-5431.99979413,0.00032024,2]
[340881901,1730005838722,-510.91165736,0.00032024,7]
[340881902,1730005838733,-174.70370018,0.0003212,2]
[340881903,1730005838742,-201.105,0.00032165,31]
[340881904,1730005838752,-4108.92120765,0.00032255,2]
[340881905,1730005838763,-5431.99979413,0.00032285,2]
[340881906,1730005838773,-174.70370018,0.00032298,2]
[340881907,1730005838782,-174.70370018,0.00032477,2]
[340881908,1730005838791,-174.70370018,0.00032655,2]
[340881909,1730005838801,-8762.9085576,0.00032665,2]
[340881910,1730005838812,-1000.0,0.00032675,2]
[340881911,1730005838821,-416.55,0.00032744,3]
[340881912,1730005838831,-208.28,0.00032744,3]
[340881913,1730005838841,-500.0,0.00032753,2]
[340881914,1730005838853,-500.0,0.00032753,2]
[340881915,1730005838862,-195.25772934,0.00032753,2]
[340881916,1730005838872,-500.0,0.00032753,2]
[340881917,1730005838881,-500.0,0.00032753,2]
[340881918,1730005838891,-500.0,0.00032753,2]
[340881919,1730005838901,-500.0,0.00032753,2]
[340881920,1730005838910,-500.0,0.00032753,2]
[340881921,1730005838920,-500.0,0.00032753,2]
[340881922,1730005838930,-500.0,0.00032753,2]
[340881923,1730005838939,-500.0,0.00032753,2]
[340881924,1730005838948,-428.60087899,0.00032753,2]
[340881925,1730005838958,-500.0,0.00032753,2]
[340881926,1730005838968,-263.01600637,0.00032753,2]
[340881927,1730005838977,-500.0,0.00032753,2]
[340881928,1730005838988,-500.0,0.00032753,2]
[340881929,1730005838997,-611.25335795,0.00032754,2]
[340881930,1730005839006,-247.37402709,0.00032754,2]
[340881931,1730005839016,-255.20566038,0.00032754,2]
[340881932,1730005839026,-35759.1329584,0.00032754,4]
[340881933,1730005839036,-103745.055308,0.00032754,4]
[340881934,1730005839046,-151.0,0.00032755,7]
[340881935,1730005839055,-151.0,0.00032755,7]
[340881936,1730005839064,-151.0,0.00032755,7]
[340881937,1730005839074,-151.0,0.00032755,7]
[340881938,1730005839083,-151.0,0.00032755,7]
[340881939,1730005839093,-151.0,0.00032755,7]
[340881940,1730005839102,-151.0,0.00032755,7]
[340881941,1730005839111,-151.0,0.00032755,7]
[340881942,1730005839120,-151.0,0.00032755,7]
[340881943,1730005839129,-151.0,0.00032755,7]
[340881944,1730005839139,-152.315627,0.00032755,7]
[340881945,1730005839150,-151.0,0.00032755,7]
[340881946,1730005839159,-151.0,0.00032755,7]
[340881947,1730005839169,-151.0,0.00032755,7]
[340881948,1730005839178,-151.0,0.00032755,7]
[340881949,1730005839188,-227.015045,0.00032755,7]
[340881950,1730005839197,-227.015045,0.00032755,7]
[340881951,1730005839206,-35759.1329584,0.00032755,4]
[340881952,1730005839216,-44244.16652047,0.00032755,4]
[340881953,1730005839233,-1537.53036691,0.00032755,4]
[340881954,1730005839244,-8121.56344819,0.00032755,4]
[340881961,1730005840415,-16893.0,0.00032755,4]
[340881962,1730005840427,-21852.0,0.00032755,4]
[340881963,1730005840525,-11096.79497243,0.00032755,4]
[340881964,1730005840535,-55285.27719288,0.00032755,4]
[340881965,1730005840548,-16232.98872382,0.00032755,4]
[340881966,1730005840557,-25580.02141673,0.00032755,4]
[340881981,1730005843440,-227.015045,0.00032755,7]
[340881982,1730005843526,-227.015045,0.00032755,7]
[340881983,1730005843613,-6444.01638865,0.00032755,4]
[340881984,1730005843750,-505.51884002,0.00032755,4]
[340881985,1730005843846,-2443.79505322,0.00032755,4]
[340881986,1730005844300,-151.0,0.00032755,7]
[340881987,1730005844310,-492.83583821,0.00032755,4]
[340881988,1730005844356,-624.85,0.00032745,3]
[340881989,1730005844366,-53.31,0.00032755,4]
[340881997,1730005846409,-151.0,0.00032755,7]
[340881998,1730005846420,-158.781231,0.00032755,7]
[340881999,1730005846431,-23189.00900881,0.00032755,4]
[340882000,1730005846444,-309.90177742,0.00032755,4]
[340882017,1730006937654,5000.0,0.00035796,30]
[340882018,1730006959631,3300.0,0.00022,60]
[340882047,1730007032499,-802.5597286,0.00025663,2]
[340882049,1730007032509,-300.0,0.00026585,2]
[340882051,1730007032519,-300.0,0.00026585,2]
[340882053,1730007032528,-23505.2888924,0.00026586,2]
[340882092,1730007038802,-1394.7111076,0.00026586,2]
[340882093,1730007038814,-398.54485688,0.0002663,2]
[340882094,1730007038825,-5077.0103899,0.00026631,2]
[340882095,1730007038836,-160.0,0.00027,2]
[340882096,1730007038845,-1233.5152222,0.00027135,2]
[340882097,1730007038856,-500.0,0.00027397,30]
[340882098,1730007038865,-2720.83,0.00027397,30]
[340882099,1730007038875,-3405.18,0.00027397,30]
[340882100,1730007038886,-1213.7,0.00027397,30]
[340882102,1730007038895,-500.0,0.00027397,30]
[340882103,1730007038906,-813.3,0.00027397,30]
[340882104,1730007038916,-500.0,0.00027397,30]
[340882105,1730007038927,-552.33,0.00027397,30]
[340882106,1730007038938,-500.0,0.00027397,30]
[340882107,1730007038948,-500.0,0.00027397,30]
[340882108,1730007038958,-500.0,0.00027397,2]
[340882109,1730007038967,-500.0,0.00027397,30]
[340882110,1730007038978,-1344.25,0.00027397,30]
[340882111,1730007038988,-500.0,0.00027397,30]
[340882112,1730007038999,-500.0,0.00027397,30]
[340882113,1730007039011,-500.0,0.00027671,30]
[340882114,1730007039022,-2720.83,0.00027671,30]
[340882115,1730007039032,-3405.18,0.00027671,30]
[340882116,1730007039044,-1213.7,0.00027671,30]
[340882117,1730007039055,-500.0,0.00027671,30]
[340882118,1730007039066,-813.3,0.00027671,30]
[340882119,1730007039077,-500.0,0.00027671,30]
[340882120,1730007039088,-552.33,0.00027671,30]
[340882121,1730007039098,-500.0,0.00027671,30]
[340882122,1730007039108,-500.0,0.00027671,30]
[340882123,1730007039117,-500.0,0.00027671,2]
[340882124,1730007039128,-500.0,0.00027671,30]
[340882125,1730007039137,-1344.25,0.00027671,30]
[340882126,1730007039147,-500.0,0.00027671,30]
[340882127,1730007039156,-500.0,0.00027671,30]
[340882128,1730007039168,-500.0,0.00027945,30]
[340882129,1730007039179,-2720.83,0.00027945,30]
[340882130,1730007039190,-3405.18,0.00027945,30]
[340882131,1730007039201,-1213.7,0.00027945,30]
[340882132,1730007039211,-500.0,0.00027945,30]
[340882133,1730007039221,-813.3,0.00027945,30]
[340882134,1730007039230,-500.0,0.00027945,30]
[340882135,1730007039241,-288.1408586,0.00027945,30]
[340882163,1730007040639,-264.1891414,0.00027945,30]
[340882165,1730007040649,-581.12283527,0.00027945,30]
[340882167,1730007040660,-500.0,0.00027945,30]
[340882169,1730007040670,-500.0,0.00027945,2]
[340882171,1730007040680,-500.0,0.00027945,30]
[340882173,1730007040691,-1344.25,0.00027945,30]
[340882176,1730007040702,-500.0,0.00027945,30]
[340882178,1730007040712,-500.0,0.00027945,30]
[340882180,1730007040728,-500.0,0.00028219,30]
[340882182,1730007040737,-2720.83,0.00028219,30]
[340882184,1730007040747,-3405.18,0.00028219,30]
[340882186,1730007040757,-1213.7,0.00028219,30]
[340882188,1730007040768,-500.0,0.00028219,30]
[340882190,1730007040777,-813.3,0.00028219,30]
[340882192,1730007040786,-500.0,0.00028219,30]
[340882194,1730007040796,-552.33,0.00028219,30]
[340882196,1730007040806,-500.0,0.00028219,30]
[340882198,1730007040815,-500.0,0.00028219,2]
[340882200,1730007040825,-500.0,0.00028219,30]
[340882202,1730007040834,-1344.25,0.00028219,30]
[340882204,1730007040843,-500.0,0.00028219,30]
[340882206,1730007040852,-500.0,0.00028219,30]
[340882208,1730007040861,-811.41,0.00028472,30]
[340882210,1730007040870,-500.0,0.00028472,30]
[340882212,1730007040879,-1689.48,0.00028472,30]
[340882215,1730007040889,-500.0,0.00028472,30]
[340882217,1730007040898,-4991.15,0.00028472,30]
[340882219,1730007040907,-2650.48,0.00028472,30]
[340882221,1730007040916,-2212.61,0.00028472,30]
[340882223,1730007040926,-500.0,0.00028472,30]
[340882225,1730007040935,-2530.72,0.00028472,30]
[340882227,1730007040944,-783.15,0.00028472,30]
[340882229,1730007040954,-500.0,0.00028473,30]
[340882231,1730007040964,-500.0,0.00028473,30]
[340882233,1730007040974,-500.0,0.00028473,30]
[340882235,1730007040983,-500.0,0.00028473,30]
[340882237,1730007040992,-2893.63,0.00028473,30]
[340882239,1730007041002,-2515.89,0.00028473,30]
[340882241,1730007041011,-1146.83,0.00028473,30]
[340882243,1730007041021,-656.53,0.00028473,30]
[340882245,1730007041030,-500.0,0.00028473,30]
[340882247,1730007041039,-735.89,0.00028473,30]
[340882249,1730007041049,-544.72415512,0.00028473,30]
[340882251,1730007041064,-966.08,0.00028473,30]
[340882254,1730007041074,-712.89,0.00028473,30]
[340882256,1730007041083,-948.77,0.00028473,30]
[340882258,1730007041092,-500.0,0.00028473,30]
[340882260,1730007041102,-703.9,0.00028473,30]
[340882262,1730007041112,-500.0,0.00028473,30]
[340882264,1730007041121,-1849.72,0.00028473,30]
[340882266,1730007041131,-1569.57,0.00028473,30]
[340882268,1730007041140,-518.51910101,0.00028473,30]
[340882270,1730007041151,-886.19,0.00028473,30]
[340882272,1730007041161,-1043.92,0.00028473,30]
[340882274,1730007041171,-500.0,0.00028473,30]
[340882277,1730007041181,-500.0,0.00028473,30]
[340882279,1730007041193,-500.0,0.00028473,30]
[340882281,1730007041203,-505.61760529,0.00028473,30]
[340882283,1730007041212,-500.0,0.00028473,30]
[340882285,1730007041222,-1112.31,0.00028473,30]
[340882287,1730007041232,-1566.12,0.00028473,30]
[340882289,1730007041244,-599.58092115,0.00028473,30]
[340882291,1730007041255,-1417.69,0.00028473,30]
[340882294,1730007041265,-500.0,0.00028473,30]
[340882296,1730007041275,-500.0,0.00028473,30]
[340882298,1730007041288,-195.89066738,0.00028492,2]
[340882300,1730007041297,-547.62231989,0.00028492,2]
[340882302,1730007041307,-278.4803099,0.00028493,30]
[340882304,1730007041316,-57.5551089,0.00028493,30]
[340882482,1730007046582,-500.0,0.00027397,30]
[340882483,1730007046592,-1081.6,0.00027397,30]
[340882484,1730007046605,-240.06943395,0.00027397,30]
[340882487,1730007507762,37074.94192844,0.0001,2]
[340882488,1730007507791,34429.51325022,0.0001,2]
[340882489,1730007507815,150000.0,0.0001,2]
[340882490,1730007507846,203602.06294914,0.0001,2]
[340882494,1730008077570,1000.0,0.00035763,30]
[340882542,1730008235914,-501.55047711,0.0002538,2]
[340882543,1730008235925,-6266.8632155,0.00025656,2]
[340882544,1730008235936,-295.9907674,0.00025847,2]
[340882545,1730008235946,-1144.9713295,0.00025922,2]
[340882546,1730008235956,-185.011754,0.00025959,2]
[340882547,1730008235967,-185.011754,0.0002603,2]
[340882548,1730008235978,-185.011754,0.00026101,2]
[340882549,1730008235988,-185.011754,0.00026172,2]
[340882550,1730008235998,-500.0,0.00026211,2]
[340882551,1730008236009,-300.0,0.00026243,2]
[340882552,1730008236019,-300.0,0.00026243,2]
[340882553,1730008236031,-185.011754,0.00026244,2]
[340882554,1730008236042,-185.011754,0.00026315,2]
[340882555,1730008236052,-185.011754,0.00026386,2]
[340882556,1730008236064,-185.011754,0.00026457,2]
[340882557,1730008236073,-185.011754,0.00026528,2]
[340882558,1730008236084,-185.011754,0.000266,2]
[340882559,1730008236094,-185.011754,0.00026671,2]
[340882560,1730008236104,-185.011754,0.00026742,2]
[340882561,1730008236114,-185.011754,0.00026813,2]
[340882562,1730008236124,-185.011754,0.00026885,2]
[340882563,1730008236134,-185.011754,0.00026956,2]
[340882564,1730008236143,-185.011754,0.00027027,2]
[340882565,1730008236154,-185.011754,0.00027098,2]